Cogmind - Beta 10.2 @@@ ROGUE MODE // 2020.10.31 @ 17:47:18 Player: PlasticHeart Result: Self-destructed Performance ------------- Evolutions (5) 2500 Regions Visited (20) 4000 Robots Destroyed (70) 350 Value Destroyed (1748) 1748 Prototype IDs (52) 1040 Alien Tech Used (0) 0 Bonus (931) 931 TOTAL SCORE: 10569 Bonus ------- High Alert Combat Kills 72 Follower Combat Kills 310 Met Data Miner 300 Met Imprinter 300 Friendly Fire -51 Cogmind --------- Core Integrity 981/1000 Matter 285/300 Energy 168/170 System Corruption 1% Temperature Cool (2) Movement Core (200) Ox3 Location -5/Factory Parts ------- > --- POWER (1) -------- Micro Fission Core > --- PROPULSION (2) --- (None) > --- UTILITY (12) ----- Gravity Neutralizing Apparatus Triangulator Experimental Terrain Scan Processor Hacking Suite Hacking Suite Hacking Suite Hacking Suite Hacking Suite Advanced System Shield > --- WEAPON (2) ------- Force Lance > --- INVENTORY (4) ---- Medium Storage Unit Experimental Targeting Computer Phasing AFG Peak State ------------ > --- POWER ------------ Micro Fission Core > --- PROPULSION ------- Experimental Cesium-ion Thruster Experimental Cesium-ion Thruster > --- UTILITY ---------- Medium Storage Unit Gravity Neutralizing Apparatus Experimental Sensor Array Experimental Terrain Scan Processor Hacking Suite Hacking Suite Hacking Suite Hacking Suite Improved System Shield Phasing AFG > --- WEAPON ----------- Improved Datajack Force Lance > --- INVENTORY -------- Experimental Cesium-ion Thruster Advanced Terrain Scanner Experimental Targeting Computer [Rating: 80] Favorites ----------- Power Light Fission Core Engine Ion Engine Power Core Light Fission Core Propulsion Experimental Cesium-ion Thruster Treads Light Treads Wheel Wheel Hover Unit Aerolev Unit Flight Unit Experimental Cesium-ion Thruster Utility Hacking Suite Device Long-range Sensor Array Storage Large Storage Unit Processor Advanced Signal Interpreter Hackware Hacking Suite Protection Core Shielding Weapon Improved Datajack Energy Gun EM Pulse Gun Energy Cannon Beam Cannon Ballistic Gun Enhanced Autogun Ballistic Cannon Light Cannon Slashing Weapon Chainsword Piercing Weapon Force Lance Special Melee Weapon Improved Datajack Build | -11 -10 -10 -10 -9 -8 -7 -7 -7 -7 -7 -7 -6 -6 -6 -6 -6 -6 -6 -5 -5 ------- Run | Scr Mat Min Exi Min Mat Fac Was Fac Low Low Dat Pro Fac Was Fac Low Low Zio Pro Fac Slots Evolved 10 | . . . . . 4 2 . . . . . . 2 . . . . . . 2 Power . | . . . . . . . . . . . . . . . . . . . . . Propulsion . | . . . . . . . . . . . . . . . . . . . . . Utility 10 | . . . . . 4 2 . . . . . . 2 . . . . . . 2 Weapon . | . . . . . . . . . . . . . . . . . . . . . Parts Attached 114 | 9 13 2 1 . 39 21 1 5 . 1 3 1 7 . 1 1 . 4 2 3 Power 10 | 2 . . . . 4 3 . . . . . 1 . . . . . . . . Engine 3 | 2 . . . . . 1 . . . . . . . . . . . . . . Core 7 | . . . . . 4 2 . . . . . 1 . . . . . . . . Reactor . | . . . . . . . . . . . . . . . . . . . . . Propulsion 18 | 2 2 2 . . 5 2 1 3 . . . . . . . . . . 1 . Treads 4 | 2 2 . . . . . . . . . . . . . . . . . . . Leg . | . . . . . . . . . . . . . . . . . . . . . Wheel 6 | . . 2 . . 4 . . . . . . . . . . . . . . . Hover 1 | . . . . . 1 . . . . . . . . . . . . . . . Flight 7 | . . . . . . 2 1 3 . . . . . . . . . . 1 . Utility 47 | 2 2 . 1 . 13 12 . 1 . 1 1 . 5 . 1 1 . 4 1 2 Device 12 | . . . . . 1 3 . . . . 1 . 2 . . 1 . 3 . 1 Storage 13 | 2 2 . 1 . 6 . . . . 1 . . . . . . . 1 . . Processor 5 | . . . . . . 2 . 1 . . . . 2 . . . . . . . Hackware 11 | . . . . . 1 6 . . . . . . 1 . 1 . . . 1 1 Protection 6 | . . . . . 5 1 . . . . . . . . . . . . . . Artifact . | . . . . . . . . . . . . . . . . . . . . . Weapon 39 | 3 9 . . . 17 4 . 1 . . 2 . 2 . . . . . . 1 Energy Gun 1 | 1 . . . . . . . . . . . . . . . . . . . . Energy Cannon 9 | . 5 . . . 4 . . . . . . . . . . . . . . . Ballistic Gun 12 | 2 . . . . 10 . . . . . . . . . . . . . . . Ballistic Cannon 5 | . 4 . . . 1 . . . . . . . . . . . . . . . Launcher . | . . . . . . . . . . . . . . . . . . . . . Special Weapon . | . . . . . . . . . . . . . . . . . . . . . Impact Weapon . | . . . . . . . . . . . . . . . . . . . . . Slashing Weapon 5 | . . . . . 2 1 . 1 . . . . 1 . . . . . . . Piercing Weapon 2 | . . . . . . . . . . . 1 . 1 . . . . . . . Special Melee Weapon 5 | . . . . . . 3 . . . . 1 . . . . . . . . 1 Unidentified Prototypes 4 | . . . . . 2 . 1 . . . . . . . . . . 1 . . Parts Lost 30 | . 1 . . . 16 3 . . . . . . . . 2 . 1 . 4 3 Power 4 | . . . . . 3 1 . . . . . . . . . . . . . . Propulsion 8 | . 1 . . . 5 . . . . . . . . . . . . . . 2 Utility 11 | . . . . . 3 2 . . . . . . . . 2 . 1 . 3 . Weapon 7 | . . . . . 5 . . . . . . . . . . . . . 1 1 Highest Loss Streak 6 | . 1 . . . 6 3 . . . . . . . . 2 . 1 . 4 3 Average Slot Usage (%) 94 | . 95 100 96 85 87 94 100 100 100 100 100 100 100 100 98 93 88 87 94 78 Engine 3 | . 14 14 14 14 4 . . . . . . . . . . . . . . . Core 4 | . . . . . 3 6 7 7 7 7 7 7 6 6 6 6 6 6 6 5 Treads 2 | . 24 4 . . . . . . . . . . . . . . . . . . Wheel 6 | . . 23 28 28 17 . . . . . . . . . . . . . . . Flight 8 | . . . . . . 14 15 15 15 15 15 15 13 13 13 13 13 13 13 11 Device 5 | . . . . . 1 6 7 7 7 6 6 7 13 13 13 13 13 14 18 8 Storage 10 | . 28 28 24 14 26 . . . . . . . . . . . . . . . Processor 5 | . . . . . . 12 7 7 7 7 7 7 13 13 13 13 8 6 6 5 Hackware 25 | . . . . . 1 33 46 46 46 46 46 46 40 40 38 33 33 33 37 35 Protection 3 | . . . . . 13 1 . . . . . . . . . . . . . . Energy Cannon 2 | . 11 14 14 14 3 . . . . . . . . . . . . . . . Ballistic Gun 2 | . 7 . . . 8 . . . . . . . . . . . . . . . Ballistic Cannon 3 | . 8 14 14 14 5 . . . . . . . . . . . . . . . Slashing Weapon 3 | . . . . . . 6 7 7 7 7 7 7 5 . . . . . . . Special Melee Weapon 3 | . . . . . . 6 7 7 7 7 6 7 6 6 6 6 6 6 5 3 Naked Turns . | . . . . . . . . . . . . . . . . . . . . . Heaviest Build 139 | 15 43 43 91 91 139 12 12 13 13 19 19 13 14 14 14 14 14 22 14 13 Greatest Support 40 | 40 40 20 20 20 32 12 13 14 14 14 14 14 14 14 14 14 14 26 14 14 Greatest Overweight (x) 14 | 1 14 4 4 4 12 . . . . 1 1 . . . . . . . . . Average Overweight (x) . | . . 2 2 4 4 . . . . . . . . . . . . . . . Largest Inventory Capacity 40 | 8 16 16 24 24 40 22 4 4 4 8 8 4 4 4 4 4 4 8 4 4 Average Capacity 12 | 6 15 16 18 24 33 4 4 4 4 4 4 4 4 4 4 4 4 4 4 4 Most Carried 36 | 2 12 13 14 20 36 16 4 4 4 7 7 4 4 4 4 4 4 4 4 4 Average Carried 10 | 1 9 12 12 16 28 3 3 3 4 3 3 4 3 4 3 3 4 3 4 2 Final Capacity 24 | 8 16 16 24 24 22 4 4 4 4 8 4 4 4 4 4 4 4 4 4 4 Final Carried 20 | 2 12 13 14 20 16 4 4 4 4 7 4 4 4 4 3 4 4 4 4 3 Class Distribution -------------------- 32% | Wizard-Sprinter 24% | Hauler-Mutant 14% | Mutant 13% | Wizard-Scout 12% | Hacker-Scout Dominant Class ---------------- Mutant | -10/Materials Mutant | -10/Mines Mutant | -10/Exiles Hauler-Mutant | -9/Mines Hauler-Mutant | -8/Materials Hacker-Scout | -7/Factory Wizard-Sprinter | -7/Waste Wizard-Sprinter | -7/Factory Wizard-Sprinter | -7/Lower Caves Wizard-Sprinter | -7/Lower Caves Wizard-Sprinter | -7/Data Miner Wizard-Sprinter | -6/Proximity Caves Wizard-Scout | -6/Factory Wizard-Scout | -6/Waste Wizard-Scout | -6/Factory Hacker-Scout | -6/Lower Caves Hacker-Scout | -6/Lower Caves Hacker-Scout | -6/Zion Wizard-Scout | -5/Proximity Caves Wizard-Sprinter | -5/Factory Resources | -11 -10 -10 -10 -9 -8 -7 -7 -7 -7 -7 -7 -6 -6 -6 -6 -6 -6 -6 -5 -5 ----------- Run | Scr Mat Min Exi Min Mat Fac Was Fac Low Low Dat Pro Fac Was Fac Low Low Zio Pro Fac Matter Collected 2326 | 283 214 101 . 64 1171 52 153 50 . . . 50 70 . 13 30 15 36 24 . Remotely . | . . . . . . . . . . . . . . . . . . . . . Salvage Created 2646 | 68 376 101 . 214 1648 52 . . . 18 . . 122 . 47 . . . . . Parts 162 | 2 22 8 . 8 102 7 . . . . . . 9 . 4 . . . . . Haulers Intercepted 7 | . . . . . 6 . . . . . . . 1 . . . . . . . Recyclers Shooed 3 | . . 1 . 1 1 . . . . . . . . . . . . . . . Parts Field Recycled . | . . . . . . . . . . . . . . . . . . . . . Retrieved Matter . | . . . . . . . . . . . . . . . . . . . . . Parts Self-Destructed 5 | . . . . . . . . . . 3 . . . . . . 2 . . . Prevented 1 | . . . . . . . . . . 1 . . . . . . . . . . Kills | -11 -10 -10 -10 -9 -8 -7 -7 -7 -7 -7 -7 -6 -6 -6 -6 -6 -6 -6 -5 -5 ------- Run | Scr Mat Min Exi Min Mat Fac Was Fac Low Low Dat Pro Fac Was Fac Low Low Zio Pro Fac Combat Hostiles Destroyed 36 | . 6 . . 1 29 . . . . . . . . . . . . . . . Guns 21 | . . . . . 21 . . . . . . . . . . . . . . . Cannons 15 | . 6 . . 1 8 . . . . . . . . . . . . . . . Classes Destroyed 13 | 1 3 1 . . 7 . . . . 1 . . . . . . . . . . Worker 3 | . . . . . 1 1 . . . . . . . . 1 . . . . . Builder 3 | . . . . . 3 . . . . . . . . . . . . . . . Tunneler 3 | . . 2 . 1 . . . . . . . . . . . . . . . . Hauler 7 | . . . . . 6 . . . . . . . 1 . . . . . . . Recycler 6 | 1 2 1 . 2 . . . . . . . . . . . . . . . . Minesweeper 1 | . . . . . . . . . . 1 . . . . . . . . . . Operator 4 | . 1 . . . 2 1 . . . . . . . . . . . . . . Watcher 7 | . 2 . . . 3 . . . . . . . 1 . 1 . . . . . Swarmer 7 | . . . . . 7 . . . . . . . . . . . . . . . Grunt 18 | . 6 . . 1 11 . . . . . . . . . . . . . . . Brawler 1 | . . . . . 1 . . . . . . . . . . . . . . . Sentry 9 | . . . . . 9 . . . . . . . . . . . . . . . Hunter 1 | . . . . . 1 . . . . . . . . . . . . . . . Best Kill Streak 5 | 1 4 2 . 2 5 1 . . . 1 . . 1 . 1 . . . . . Combat Bots Only 5 | . 2 . . 1 5 . . . . . . . . . . . . . . . Max Kills in Single Turn 2 | 1 1 2 . 1 2 1 . . . 1 . . 1 . 1 . . . . . Gunslinging 1 | . . . . . 1 . . . . . . . . . . . . . . . Exploded . | . . . . . . . . . . . . . . . . . . . . . Melee . | . . . . . . . . . . . . . . . . . . . . . Uniques/NPCs Destroyed . | . . . . . . . . . . . . . . . . . . . . . Combat | -11 -10 -10 -10 -9 -8 -7 -7 -7 -7 -7 -7 -6 -6 -6 -6 -6 -6 -6 -5 -5 -------- Run | Scr Mat Min Exi Min Mat Fac Was Fac Low Low Dat Pro Fac Was Fac Low Low Zio Pro Fac Damage Taken 3777 | . 446 17 . 22 2573 107 . . . . . . 12 . 130 . 133 . 241 96 Core 649 | . 27 . . . 369 . . . . . . . 12 . 69 . 96 . 57 19 Absorbed by Shields . | . . . . . . . . . . . . . . . . . . . . . Core Remaining (%) 78 | 100 . . . 89 32 . . . . . . 100 . . . . . . 72 . Volleys Fired 192 | 6 39 4 . 11 132 . . . . . . . . . . . . . . . Largest 2 | 2 2 2 . 2 2 . . . . . . . . . . . . . . . Hottest 120 | 40 120 95 . 95 110 . . . . . . . . . . . . . . . Shots Fired 369 | 12 68 8 . 22 259 . . . . . . . . . . . . . . . Gun 189 | 12 9 . . . 168 . . . . . . . . . . . . . . . Cannon 180 | . 59 8 . 22 91 . . . . . . . . . . . . . . . Launcher . | . . . . . . . . . . . . . . . . . . . . . Special . | . . . . . . . . . . . . . . . . . . . . . Kinetic 293 | 12 43 4 . 11 223 . . . . . . . . . . . . . . . Thermal 76 | . 25 4 . 11 36 . . . . . . . . . . . . . . . Explosive . | . . . . . . . . . . . . . . . . . . . . . Electromagnetic . | . . . . . . . . . . . . . . . . . . . . . Robot Hit Streak 13 | 5 10 5 . 5 13 . . . . . . . . . . . . . . . Robot Miss Streak 8 | 2 3 1 . 2 8 . . . . . . . . . . . . . . . Penetration Max 1 | . . . . . 1 . . . . . . . . . . . . . . . Secondary Targets 5 | . . . . . 5 . . . . . . . . . . . . . . . Max Gunslinging Chain 1 | . . . . . 1 . . . . . . . . . . . . . . . Shots Hit Robots 260 | 8 48 5 . 12 172 4 . . . 1 1 . 4 . 2 . . . . 3 Core Hits 128 | 2 17 3 . 6 93 2 . . . 1 . . 2 . 2 . . . . . Critical Hits 5 | . 1 . . . 4 . . . . . . . . . . . . . . . Critical Kills . | . . . . . . . . . . . . . . . . . . . . . Critical Parts Destroyed 4 | . 1 . . . 3 . . . . . . . . . . . . . . . Melee Attacks 157 | . . . . . 2 23 . 32 11 1 9 5 36 . 14 . 5 . 10 9 Impact . | . . . . . . . . . . . . . . . . . . . . . Slashing 107 | . . . . . 2 21 . 32 11 1 7 5 28 . . . . . . . Piercing 43 | . . . . . . . . . . . 1 . 7 . 14 . 5 . 10 6 Sneak Attacks 12 | . . . . . . 4 . . . . 1 . 3 . 1 . . . . 3 Combat Hostiles . | . . . . . . . . . . . . . . . . . . . . . Follow-up Attacks . | . . . . . . . . . . . . . . . . . . . . . Damage Inflicted 5312 | 68 957 85 . 228 3196 213 . . . 43 . . 246 . 276 . . . . . Guns 2250 | 68 60 . . . 2122 . . . . . . . . . . . . . . . Cannons 2094 | . 707 85 . 228 1074 . . . . . . . . . . . . . . . Explosions 190 | . 190 . . . . . . . . . . . . . . . . . . . Melee 778 | . . . . . . 213 . . . 43 . . 246 . 276 . . . . . Ramming . | . . . . . . . . . . . . . . . . . . . . . Kinetic 3371 | 68 435 34 . 106 2728 . . . . . . . . . . . . . . . Thermal 1163 | . 522 51 . 122 468 . . . . . . . . . . . . . . . Explosive . | . . . . . . . . . . . . . . . . . . . . . Electromagnetic . | . . . . . . . . . . . . . . . . . . . . . Impact . | . . . . . . . . . . . . . . . . . . . . . Slashing 297 | . . . . . . 213 . . . 43 . . 41 . . . . . . . Piercing 481 | . . . . . . . . . . . . . 205 . 276 . . . . . Highest Corruption 15 | . . . . . 7 . . . . . . . . 6 15 15 15 15 . 1 Average Corruption 5 | . . . . . 3 . . . . . . . . 6 8 15 15 15 . 1 Corruption Purged . | . . . . . . . . . . . . . . . . . . . . . Effects 64 | . . . . . 28 . . . . . . . . . 13 10 11 1 . 1 Message Errors 14 | . . . . . 9 . . . . . . . . . 2 . 2 . . 1 Matter Fused 10 | . . . . . 2 . . . . . . . . . 5 1 2 . . . Heat Flow Errors 4 | . . . . . 2 . . . . . . . . . 1 1 . . . . Energy Discharges 4 | . . . . . 3 . . . . . . . . . . 1 . . . . Parts Rejected 1 | . . . . . 1 . . . . . . . . . . . . . . . Data Loss (minor) 6 | . . . . . 4 . . . . . . . . . 1 . 1 . . . Data Loss (major) 3 | . . . . . . . . . . . . . . . 1 1 1 . . . Alerts 1 | . . . . . . . . . . . . . . . . 1 . . . . Misdirections 11 | . . . . . . . . . . . . . . . 1 5 4 1 . . Targeting Errors 10 | . . . . . 7 . . . . . . . . . 2 . 1 . . . Overload Shots . | . . . . . . . . . . . . . . . . . . . . . Overflow Damage 77 | . 77 . . . . . . . . . . . . . . . . . . . Projectiles 4 | . 4 . . . . . . . . . . . . . . . . . . . Explosions 73 | . 73 . . . . . . . . . . . . . . . . . . . Melee . | . . . . . . . . . . . . . . . . . . . . . Knockbacks 8 | . 2 . . 2 4 . . . . . . . . . . . . . . . Impact . | . . . . . . . . . . . . . . . . . . . . . Kinetic 8 | . 2 . . 2 4 . . . . . . . . . . . . . . . Secondary . | . . . . . . . . . . . . . . . . . . . . . Self-Inflicted Damage 19 | . 19 . . . . . . . . . . . . . . . . . . . Shots 1 | . 1 . . . . . . . . . . . . . . . . . . . Rammed . | . . . . . . . . . . . . . . . . . . . . . Targets Rammed . | . . . . . . . . . . . . . . . . . . . . . Kicked . | . . . . . . . . . . . . . . . . . . . . . Crushed . | . . . . . . . . . . . . . . . . . . . . . Highest Temperature 242 | . 227 33 . 132 227 . . . . . . . . . 209 242 . . . . Average Temperature 69 | . 78 19 . 44 67 . . . . . . . . . 95 127 . . . . Received Heat Transfer 1371 | . 246 9 . 12 1053 18 . . . . . . . . . . . . 33 . Effects 2 | . . . . . 2 . . . . . . . . . . . . . . . Energy Bleed 1 | . . . . . 1 . . . . . . . . . . . . . . . Interference 1 | . . . . . 1 . . . . . . . . . . . . . . . Siege Activations . | . . . . . . . . . . . . . . . . . . . . . Robots Corrupted . | . . . . . . . . . . . . . . . . . . . . . Combat Hostiles . | . . . . . . . . . . . . . . . . . . . . . Parts Fried . | . . . . . . . . . . . . . . . . . . . . . Impact Corruptions . | . . . . . . . . . . . . . . . . . . . . . Robots Melted . | . . . . . . . . . . . . . . . . . . . . . Combat Hostiles . | . . . . . . . . . . . . . . . . . . . . . Parts Melted 5 | . 1 . . 2 2 . . . . . . . . . . . . . . . Heat Transferred 2098 | . 803 111 . 259 925 . . . . . . . . . . . . . . . Parts Sabotaged . | . . . . . . . . . . . . . . . . . . . . . Parts Stolen . | . . . . . . . . . . . . . . . . . . . . . Parts Stripped . | . . . . . . . . . . . . . . . . . . . . . Power Chain Reactions . | . . . . . . . . . . . . . . . . . . . . . Missiles Intercepted . | . . . . . . . . . . . . . . . . . . . . . Alert | -11 -10 -10 -10 -9 -8 -7 -7 -7 -7 -7 -7 -6 -6 -6 -6 -6 -6 -6 -5 -5 ------- Run | Scr Mat Min Exi Min Mat Fac Was Fac Low Low Dat Pro Fac Was Fac Low Low Zio Pro Fac Peak Influence 712 | 5 216 57 . 96 712 445 141 164 . . . . 452 124 160 . . . . 73 Initial 308 | . 3 27 . . 37 308 93 98 . . . . . 109 86 . . . . 21 Average 151 | 1 45 41 . 45 224 313 129 78 . . . . 103 117 141 . . . . 36 Maximum Alert Level 3 | . 1 . . . 3 2 . . . . . . 2 . . . . . . . Low Security (%) 73 | 100 99 100 . 100 58 . 100 100 . . . . 82 100 100 . . . . 100 Level 1 14 | . . . . . 17 73 . . . . . . 6 . . . . . . . Level 2 11 | . . . . . 23 26 . . . . . . 10 . . . . . . . Level 3 . | . . . . . . . . . . . . . . . . . . . . . Level 4 . | . . . . . . . . . . . . . . . . . . . . . Level 5 . | . . . . . . . . . . . . . . . . . . . . . High Security . | . . . . . . . . . . . . . . . . . . . . . Max Security . | . . . . . . . . . . . . . . . . . . . . . Squads Dispatched 12 | . 1 . . . 7 1 . . . . . . 3 . . . . . . . Investigation 2 | . . . . . 1 . . . . . . . 1 . . . . . . . Extermination . | . . . . . . . . . . . . . . . . . . . . . Reinforcement 6 | . 1 . . . 3 1 . . . . . . 1 . . . . . . . Assault 2 | . . . . . 1 . . . . . . . 1 . . . . . . . Garrison 2 | . . . . . 2 . . . . . . . . . . . . . . . Intercept . | . . . . . . . . . . . . . . . . . . . . . Construction Impeded . | . . . . . . . . . . . . . . . . . . . . . Haulers Reinforced . | . . . . . . . . . . . . . . . . . . . . . Stealth | -11 -10 -10 -10 -9 -8 -7 -7 -7 -7 -7 -7 -6 -6 -6 -6 -6 -6 -6 -5 -5 --------- Run | Scr Mat Min Exi Min Mat Fac Was Fac Low Low Dat Pro Fac Was Fac Low Low Zio Pro Fac Distress Signals 10 | . . . . . 7 2 . . . . . . 1 . . . . . . . Communications Jammed . | . . . . . . . . . . . . . . . . . . . . . Distress Signals . | . . . . . . . . . . . . . . . . . . . . . Times Spotted 147 | . 15 2 . 3 71 8 5 1 3 . . 2 6 3 6 1 12 . 7 2 Peak Tracking Total 9 | . 4 2 . 3 9 4 4 1 3 . . 3 3 3 4 3 7 . 5 2 Tactical Retreats 18 | . 2 . . . 4 3 . . 1 . . . 3 . . 1 2 . 2 . Traps | -11 -10 -10 -10 -9 -8 -7 -7 -7 -7 -7 -7 -6 -6 -6 -6 -6 -6 -6 -5 -5 ------- Run | Scr Mat Min Exi Min Mat Fac Was Fac Low Low Dat Pro Fac Was Fac Low Low Zio Pro Fac Traps Triggered 16 | . 3 . . . 5 3 . . . . . . 3 . . . 1 . . 1 Indirectly . | . . . . . . . . . . . . . . . . . . . . . Trap Hack Attempts . | . . . . . . . . . . . . . . . . . . . . . Triggered . | . . . . . . . . . . . . . . . . . . . . . Disarmed . | . . . . . . . . . . . . . . . . . . . . . Reprogrammed . | . . . . . . . . . . . . . . . . . . . . . Reused . | . . . . . . . . . . . . . . . . . . . . . Traps Extracted . | . . . . . . . . . . . . . . . . . . . . . Installed 2 | . . . . . . . . . . . 2 . . . . . . . . . Triggered 1 | . . . . . . . . . . 1 . . . . . . . . . . Machines | -11 -10 -10 -10 -9 -8 -7 -7 -7 -7 -7 -7 -6 -6 -6 -6 -6 -6 -6 -5 -5 ---------- Run | Scr Mat Min Exi Min Mat Fac Was Fac Low Low Dat Pro Fac Was Fac Low Low Zio Pro Fac Machines Disabled 4 | . 2 . . . 2 . . . . . . . . . . . . . . . Max in Single Turn 2 | . 2 . . . 1 . . . . . . . . . . . . . . . Garrison Access 11 | . . . . . 1 2 . 2 . . . . 4 . 1 . . . . 1 Machines Sabotaged . | . . . . . . . . . . . . . . . . . . . . . Garrisons Compromised . | . . . . . . . . . . . . . . . . . . . . . Overloaded Fab Kills . | . . . . . . . . . . . . . . . . . . . . . Fab Network Shutdowns 1 | . . . . . . . . . . . . . 1 . . . . . . . Hacking | -11 -10 -10 -10 -9 -8 -7 -7 -7 -7 -7 -7 -6 -6 -6 -6 -6 -6 -6 -5 -5 --------- Run | Scr Mat Min Exi Min Mat Fac Was Fac Low Low Dat Pro Fac Was Fac Low Low Zio Pro Fac Machines Accessed 74 | . 3 . 1 . 5 12 . 18 1 . 4 1 16 . 9 1 . . . 3 Terminals 42 | . 3 . . . 3 7 . 9 . . . 1 10 . 8 . . . . 1 Fabricators 8 | . . . . . . 1 . 4 . . . . 3 . . . . . . . Repair Stations 1 | . . . . . . . . 1 . . . . . . . . . . . . Recycling Units . | . . . . . . . . . . . . . . . . . . . . . Scanalyzers 5 | . . . . . 1 1 . 2 . . . . . . . . . . . 1 Garrison Access 11 | . . . . . 1 3 . 2 . . . . 3 . 1 . . . . 1 Total Hacks 213 | . 5 . 4 . 10 32 . 45 1 . 29 1 49 . 29 1 . . . 7 Successful 182 | . 3 . 4 . 8 26 . 44 1 . 29 1 41 . 19 1 . . . 5 Failed 29 | . 2 . . . 2 6 . 1 . . . . 7 . 9 . . . . 2 Catastrophic 2 | . 1 . . . . . . . . . . . . . 1 . . . . . Database Lockouts 2 | . . . . . . . . . . . . . 1 . 1 . . . . . Manual 78 | . 1 . . . 4 15 . 10 . . . . 28 . 17 . . . . 3 Terminals 124 | . 5 . . . 8 19 . 25 . . . 1 35 . 28 . . . . 3 Fabricators 26 | . . . . . . 5 . 10 . . . . 11 . . . . . . . Repair Stations 2 | . . . . . . . . 2 . . . . . . . . . . . . Recycling Units . | . . . . . . . . . . . . . . . . . . . . . Scanalyzers 12 | . . . . . 1 2 . 6 . . . . . . . . . . . 3 Garrison Access 14 | . . . . . 1 6 . 2 . . . . 3 . 1 . . . . 1 Terminal Hacks 104 | . 2 . 4 . 4 11 . 19 1 . 29 1 18 . 13 1 . . . 1 Record 16 | . . . 4 . . . . . . . 11 1 . . . . . . . . Part Schematic 17 | . . . . . . 2 . . . . 9 . 2 . 4 . . . . . Robot Schematic 7 | . . . . . . . . 1 . . 6 . . . . . . . . . Prototype ID Bank 21 | . 1 . . . 1 4 . 3 . . 3 . 7 . 2 . . . . . Open Door 2 | . . . . . . . . . 1 . . . . . . 1 . . . . Branch Access Points 3 | . . . . . 1 . . 1 . . . . . . 1 . . . . . Machine Index 2 | . . . . . . . . 1 . . . . 1 . . . . . . . Terminal Index 3 | . . . . . . 1 . . . . . . . . 1 . . . . 1 Garrison Index 1 | . . . . . . . . . . . . . . . 1 . . . . . Unreport Threat 2 | . 1 . . . . . . 1 . . . . . . . . . . . . Locate Traps 11 | . . . . . . 1 . 5 . . . . 4 . 1 . . . . . Recall Investigation 1 | . . . . . . . . . . . . . 1 . . . . . . . Recall Assault 1 | . . . . . . . . . . . . . 1 . . . . . . . Hauler Manifests 5 | . . . . . . 1 . 1 . . . . 1 . 2 . . . . . Registered Components 1 | . . . . . . 1 . . . . . . . . . . . . . . Registered Prototypes 1 | . . . . . . . . 1 . . . . . . . . . . . . Zone Layout 10 | . . . . . 2 1 . 5 . . . . 1 . 1 . . . . . Fabricator Hacks 19 | . . . . . . 4 . 7 . . . . 8 . . . . . . . Network Status 3 | . . . . . . . . 1 . . . . 2 . . . . . . . Load Schematic 8 | . . . . . . 2 . 3 . . . . 3 . . . . . . . Build 8 | . . . . . . 2 . 3 . . . . 3 . . . . . . . Repair Station Hacks 2 | . . . . . . . . 2 . . . . . . . . . . . . Scan Component 1 | . . . . . . . . 1 . . . . . . . . . . . . Repair 1 | . . . . . . . . 1 . . . . . . . . . . . . Recycling Unit Hacks . | . . . . . . . . . . . . . . . . . . . . . Scanalyzer 12 | . . . . . 1 2 . 6 . . . . . . . . . . . 3 Insert Component 6 | . . . . . 1 1 . 3 . . . . . . . . . . . 1 Analyze 6 | . . . . . . 1 . 3 . . . . . . . . . . . 2 Garrison Access Hacks 10 | . . . . . 1 2 . 2 . . . . 3 . 1 . . . . 1 Seal Access 10 | . . . . . 1 2 . 2 . . . . 3 . 1 . . . . 1 Unauthorized Hacks 35 | . 1 . . . 2 7 . 8 . . . . 12 . 5 . . . . . Terminals 26 | . 1 . . . 2 4 . 5 . . . . 9 . 5 . . . . . Track 7 | . . . . . . 1 . 1 . . . . 3 . 2 . . . . . Assimilate 6 | . . . . . . 1 . 2 . . . . 2 . 1 . . . . . Botnet 11 | . . . . . 2 2 . 2 . . . . 3 . 2 . . . . . Detonate 1 | . 1 . . . . . . . . . . . . . . . . . . . Disrupt 1 | . . . . . . . . . . . . . 1 . . . . . . . Fabricators 7 | . . . . . . 1 . 3 . . . . 3 . . . . . . . Prioritize 6 | . . . . . . 1 . 3 . . . . 2 . . . . . . . Siphon 1 | . . . . . . . . . . . . . 1 . . . . . . . Repair Stations . | . . . . . . . . . . . . . . . . . . . . . Recycling Units . | . . . . . . . . . . . . . . . . . . . . . Scanalyzers . | . . . . . . . . . . . . . . . . . . . . . Garrison Access 2 | . . . . . . 2 . . . . . . . . . . . . . . Broadcast 1 | . . . . . . 1 . . . . . . . . . . . . . . Reprogram 1 | . . . . . . 1 . . . . . . . . . . . . . . Data Cores Recovered . | . . . . . . . . . . . . . . . . . . . . . Used . | . . . . . . . . . . . . . . . . . . . . . Hacking Detections 38 | . 2 . . . 2 6 . 10 . . . . 11 . 6 . . . . 1 Full Trace Events . | . . . . . . . . . . . . . . . . . . . . . Feedback Events . | . . . . . . . . . . . . . . . . . . . . . Feedback Blocked . | . . . . . . . . . . . . . . . . . . . . . Robot Schematics Acquired 7 | . . . . . . . . 1 . . 6 . . . . . . . . . Robots Built . | . . . . . . . . . . . . . . . . . . . . . Matter . | . . . . . . . . . . . . . . . . . . . . . Time . | . . . . . . . . . . . . . . . . . . . . . Total Robot Build Rating . | . . . . . . . . . . . . . . . . . . . . . Part Schematics Acquired 21 | . . . . . . 3 . 2 . . 9 . 2 . 4 . . . . 1 Parts Built 9 | . . . . . . 3 . 3 . . . . 3 . . . . . . . Matter 2061 | . . . . . . 336 . 870 . . . . 855 . . . . . . . Time 841 | . . . . . . 120 . 455 . . . . 266 . . . . . . . Total Part Build Rating 47 | . . . . . . 13 . 19 . . . . 15 . . . . . . . Parts Repaired 1 | . . . . . . . . 1 . . . . . . . . . . . . Time 37 | . . . . . . . . 37 . . . . . . . . . . . . Parts Recycled . | . . . . . . . . . . . . . . . . . . . . . Recycled Matter . | . . . . . . . . . . . . . . . . . . . . . Retrieved Matter . | . . . . . . . . . . . . . . . . . . . . . Retrieved Components . | . . . . . . . . . . . . . . . . . . . . . Parts Scanalyzed 4 | . . . . . . 1 . 2 . . . . . . . . . . . 1 Part Schematics Acquired 4 | . . . . . . 1 . 2 . . . . . . . . . . . 1 Parts Damaged 1 | . . . . . . . . 1 . . . . . . . . . . . . Bothacking | -11 -10 -10 -10 -9 -8 -7 -7 -7 -7 -7 -7 -6 -6 -6 -6 -6 -6 -6 -5 -5 ------------ Run | Scr Mat Min Exi Min Mat Fac Was Fac Low Low Dat Pro Fac Was Fac Low Low Zio Pro Fac Used RIF Installer . | . . . . . . . . . . . . . . . . . . . . . Robots Hacked 7 | . . . . . . 2 . . . . 1 . 1 . . . . . . 3 Non-combat 6 | . . . . . . 2 . . . . . . 1 . . . . . . 3 Combat 1 | . . . . . . . . . . . 1 . . . . . . . . . Robot Hacks Applied 7 | . . . . . . 2 . . . . 1 . 1 . . . . . . 3 parse_system 1 | . . . . . . . . . . . 1 . . . . . . . . . no_distress 1 | . . . . . . . . . . . . . . . . . . . . 1 find_chute 4 | . . . . . . 2 . . . . . . 1 . . . . . . 1 find_fabricator 1 | . . . . . . . . . . . . . . . . . . . . 1 Relay Couplers Released 4 | . . . . . . . . . . . . . 4 . . . . . . . Machine Destruction 4 | . . . . . . . . . . . . . 4 . . . . . . . Robots Rewired . | . . . . . . . . . . . . . . . . . . . . . Allies Hacked . | . . . . . . . . . . . . . . . . . . . . . Hacks Repelled . | . . . . . . . . . . . . . . . . . . . . . Allies | -11 -10 -10 -10 -9 -8 -7 -7 -7 -7 -7 -7 -6 -6 -6 -6 -6 -6 -6 -5 -5 -------- Run | Scr Mat Min Exi Min Mat Fac Was Fac Low Low Dat Pro Fac Was Fac Low Low Zio Pro Fac Total Allies 28 | . . . . 3 . 1 19 1 . . . 1 2 . 1 . . . . . Largest Group 19 | . . . . 3 3 1 19 1 . . . 1 1 1 1 . . . . . Highest-Rated Group 487 | . . . . 40 40 10 487 26 . . . 94 26 10 26 . . . . . Highest-Rated Ally 94 | . . . . 16 16 10 35 26 . . . 94 26 10 26 . . . . . Total Orders . | . . . . . . . . . . . . . . . . . . . . . Ally Attacks 155 | . . . . 10 10 . 132 . . . . 3 . . . . . . . . Total Damage 5037 | . . . . 132 144 . 4670 . . . . 91 . . . . . . . . Kills 14 | . . . . 2 2 . 10 . . . . . . . . . . . . . Allies Corrupted . | . . . . . . . . . . . . . . . . . . . . . Allies Melted 1 | . . . . . . . . . . . . 1 . . . . . . . . Intel | -11 -10 -10 -10 -9 -8 -7 -7 -7 -7 -7 -7 -6 -6 -6 -6 -6 -6 -6 -5 -5 ------- Run | Scr Mat Min Exi Min Mat Fac Was Fac Low Low Dat Pro Fac Was Fac Low Low Zio Pro Fac Robot Analysis Total . | . . . . . . . . . . . . . . . . . . . . . Derelict Logs Recovered 11 | . . 2 . . . . . . . 3 . 2 . . . 1 1 1 1 . Drone Launches . | . . . . . . . . . . . . . . . . . . . . . Drone Recoveries . | . . . . . . . . . . . . . . . . . . . . . Exploration | -11 -10 -10 -10 -9 -8 -7 -7 -7 -7 -7 -7 -6 -6 -6 -6 -6 -6 -6 -5 -5 ------------- Run | Scr Mat Min Exi Min Mat Fac Was Fac Low Low Dat Pro Fac Was Fac Low Low Zio Pro Fac Turns Passed 9140 | 95 764 174 254 319 2041 739 196 738 510 290 690 284 858 16 383 147 167 201 141 133 Spaces Moved 14547 | 46 345 149 232 231 1098 1448 346 2030 1085 1229 218 856 1848 71 904 342 353 883 420 413 Core 11 | 9 2 . . . . . . . . . . . . . . . . . . . Treads 382 | 37 343 2 . . . . . . . . . . . . . . . . . . Legs . | . . . . . . . . . . . . . . . . . . . . . Wheels 1708 | . . 147 232 231 1098 . . . . . . . . . . . . . . . Hover . | . . . . . . . . . . . . . . . . . . . . . Flight 12446 | . . . . . . 1448 346 2030 1085 1229 218 856 1848 71 904 342 353 883 420 413 Fastest Speed 22 | 50 160 100 100 120 100 32 27 22 22 22 22 22 22 22 22 22 22 22 22 22 Average Speed 39 | 143 181 105 103 120 131 32 28 24 22 22 28 22 22 22 22 22 22 22 22 22 Slowest Speed 750 | 160 750 200 120 120 200 32 32 32 22 112 112 22 22 22 22 22 22 22 22 22 Overloaded Moves . | . . . . . . . . . . . . . . . . . . . . . Propulsion Burnouts . | . . . . . . . . . . . . . . . . . . . . . Robots Hopped 24 | . . . . . . 3 . 12 1 1 . . 2 . 5 . . . . . Cave-ins Triggered 1 | . . . . . . . . . . . . . . . 1 . . . . . Exploration Rate (%) 58 | 4 56 31 58 43 76 38 94 43 92 89 77 87 53 80 23 60 57 84 74 12 Regions Visited 20 Branch Regions 11 Pre-discovered Areas 6 | . . . 1 . . . . . . . 1 2 . . . . . 2 . . Known Exits Taken 8 | . . . . . 1 . . 1 1 1 1 1 . . 1 1 . . . . Unknown Exits Taken 8 | 1 1 1 1 1 . . . . . . . . . . . . 1 1 1 . Scrap Searched 25 | . . . . 3 . . . . 4 4 . 5 . . . 1 2 4 2 . Spaces Dug 134 | . . . . . 2 18 . 32 11 . 8 5 29 . 11 . 5 . 7 6 Terrain Destroyed 155 | . 20 . . . 3 18 . 32 11 . 8 5 29 . 11 . 5 . 7 6 Melee 134 | . . . . . 2 18 . 32 11 . 8 5 29 . 11 . 5 . 7 6 Projectile 1 | . . . . . 1 . . . . . . . . . . . . . . . AOE 20 | . 20 . . . . . . . . . . . . . . . . . . . Terrain Rammed . | . . . . . . . . . . . . . . . . . . . . . Walls Destroyed . | . . . . . . . . . . . . . . . . . . . . . Machines Disabled . | . . . . . . . . . . . . . . . . . . . . . Actions | -11 -10 -10 -10 -9 -8 -7 -7 -7 -7 -7 -7 -6 -6 -6 -6 -6 -6 -6 -5 -5 --------- Run | Scr Mat Min Exi Min Mat Fac Was Fac Low Low Dat Pro Fac Was Fac Low Low Zio Pro Fac Total 17267 | 61 413 156 246 251 1452 1696 444 2209 1338 1240 834 943 2241 70 1054 412 431 888 447 441 Wait 2067 | . 3 . . 4 101 159 93 144 244 . 591 81 340 . 139 68 74 . 14 12 Move 14482 | 45 344 148 231 230 1097 1442 345 2005 1082 1226 217 855 1844 70 894 341 352 882 419 413 Hop 23 | . . . . . . 3 . 12 1 1 . . 2 . 4 . . . . . Pick Up 123 | 1 11 2 11 6 54 7 2 5 . 7 5 . 6 . 1 1 . 1 1 2 Fast Attach 34 | 7 7 . 1 . 5 6 1 2 . . . . 1 . . 1 . . 1 2 Attach 41 | . . 1 . . 20 13 . . . . . . 3 . 1 . . 2 . 1 Detach 3 | . . . . . . 2 . . . . . . . . . . . 1 . . Swap 39 | 2 6 1 . . 14 2 . 3 . 1 3 1 3 . . . . 2 1 . Drop 86 | . 3 . 3 . 27 21 3 6 . 4 7 1 6 . 1 1 . . 1 2 Fire 192 | 6 39 4 . 11 132 . . . . . . . . . . . . . . . Melee 157 | . . . . . 2 23 . 32 11 1 9 5 36 . 14 . 5 . 10 9 Ram . | . . . . . . . . . . . . . . . . . . . . . Kick . | . . . . . . . . . . . . . . . . . . . . . Crush . | . . . . . . . . . . . . . . . . . . . . . Escape Stasis 18 | . . . . . . 18 . . . . . . . . . . . . . . Rewire . | . . . . . . . . . . . . . . . . . . . . . Trap 2 | . . . . . . . . . . . 2 . . . . . . . . . Miscellaneous . | . . . . . . . . . . . . . . . . . . . . . Route ------- -11/Scrapyard -10/Materials (discovered 3 exits: [*Mat] / [*Min x2]) -10/Mines -10/Exiles -9/Mines -8/Materials (discovered 2 exits: *Fac x2) -7/Factory (discovered 2 exits: *Fac / *Low) -7/Waste -7/Factory (discovered 4 exits: *Sto x2 / *Low x2) -7/Lower Caves -7/Lower Caves -7/Data Miner -6/Proximity Caves -6/Factory -6/Waste -6/Factory (discovered 2 exits: *Low x2) -6/Lower Caves -6/Lower Caves (discovered 2 exits: *Fac / [*Zio]) -6/Zion -5/Proximity Caves -5/Factory (discovered 3 exits: Fac / *Upp x2) History --------- Turn | Location | Event 16 | -11/Scrapyard | Discovered new exit (range 15) 96 | -11/Scrapyard | Entered Materials 259 | -10/Materials | Discovered new exit (range 6) 305 | -10/Materials | Build established: Mutant 391 | -10/Materials | Discovered new exit (range 12) 727 | -10/Materials | Discovered new exit (range 13) 860 | -10/Materials | Entered Mines 903 | -10/Mines | Learned Materials security intel 938 | -10/Mines | Learned 2 Materials zone layouts 1030 | -10/Mines | Deemed a non-threat by the Exiles lab entrance 1030 | -10/Mines | Discovered new exit (range 5) 1034 | -10/Mines | Entered Exiles 1058 | -10/Exiles | Met 8R-AWN 1076 | -10/Exiles | Met EX-HEX 1111 | -10/Exiles | Met EX-BIN 1178 | -10/Exiles | Met EX-DEC 1182 | -10/Exiles | Learned location of Zion (-6) 1274 | -10/Exiles | Discovered new exit (range 11) 1288 | -10/Exiles | Entered Mines 1446 | -9/Mines | Assisted by bots powering up and referring to "LRC-V3" 1521 | -9/Mines | Build established: Hauler-Mutant 1564 | -9/Mines | Discovered new exit (range 7) 1607 | -9/Mines | Entered Materials 1607 | -8/Materials | Accompanied by 3 allies 1607 | -8/Materials | Evolved 4 slots: Utility x4 1608 | -8/Materials | Identified exit to Factory 3300 | -8/Materials | Lost 6 parts (2n3u1w) 3420 | -8/Materials | Core integrity fell below 50% 3451 | -8/Materials | Lost 3 parts (1p1n1w) 3607 | -8/Materials | First assault squad dispatched 3636 | -8/Materials | Discovered exit to Factory (range 13) 3648 | -8/Materials | Entered Factory 3648 | -7/Factory | Evolved 2 slots: Utility x2 3990 | -7/Factory | Lost 3 parts (1p2u) 4073 | -7/Factory | Discovered new exit (range 4) 4074 | -7/Factory | Identified exit to Lower Caves 4103 | -7/Factory | Discovered new exit (range 11) 4108 | -7/Factory | Identified exit to Factory 4109 | -7/Factory | Build established: Hacker-Scout 4290 | -7/Factory | Fabricated Hacking Suite (x1) 4340 | -7/Factory | Fabricated Lgt. Fission Core (x2) 4387 | -7/Factory | Manually triggered Chute Trap 4387 | -7/Factory | Sucked down chute 4387 | -7/Factory | Entered Waste 4390 | -7/Waste | Spotted C-40 Crusher 4393 | -7/Waste | Spotted C-40 Crusher 4394 | -7/Waste | Spotted C-40 Crusher 4395 | -7/Waste | Spotted C-40 Crusher 4413 | -7/Waste | Spotted C-40 Crusher 4413 | -7/Waste | Spotted C-40 Crusher 4416 | -7/Waste | Warlord forces began an assault 4446 | -7/Waste | Allies destroyed C-40 Crusher 4446 | -7/Waste | Allies destroyed C-40 Crusher 4461 | -7/Waste | Allies destroyed C-40 Crusher 4462 | -7/Waste | Allies destroyed C-40 Crusher 4489 | -7/Waste | Discovered new exit (range 12) 4581 | -7/Waste | Build established: Wizard-Sprinter 4583 | -7/Waste | Identified exit to Factory 4583 | -7/Waste | Entered Factory 4641 | -7/Factory | Discovered exit to Lower Caves (range 15) 4740 | -7/Factory | Discovered new exit (range 8) 4784 | -7/Factory | Identified exit to Storage 4840 | -7/Factory | Repaired Broken Exp. Cesium-ion Thruster 4898 | -7/Factory | Fabricated Exp. Cesium-ion Thruster (x1) 4942 | -7/Factory | Fabricated Exp. Cesium-ion Thruster? 5159 | -7/Factory | Fabricated Force Lance (x1) 5321 | -7/Factory | Entered Lower Caves 5798 | -7/Lower Caves | Attracted the attention of an 0b10 checkpoint 5826 | -7/Lower Caves | Discovered new exit (range 14) 5831 | -7/Lower Caves | Identified exit to Lower Caves 5831 | -7/Lower Caves | Entered another Lower Caves area 5910 | -7/Lower Caves | Encountered a Warlord checkpoint 5916 | -7/Lower Caves | Discovered new exit (range 15) 5920 | -7/Lower Caves | Identified exit to Data Miner 5923 | -7/Lower Caves | Learned Factory terminal intel 5923 | -7/Lower Caves | Learned Factory stockpile data 5963 | -7/Lower Caves | Learned Factory non-interactive machine intel 6121 | -7/Lower Caves | Entered Data Miner 6121 | -7/Data Miner | Discovered new exit (range 6) 6132 | -7/Data Miner | Identified exit to Proximity Caves 6140 | -7/Data Miner | Met Data Miner 6149 | -7/Data Miner | Learned location of Section 7 (-2) 6149 | -7/Data Miner | Acquired the access code to Warlord's prototype stash 6152 | -7/Data Miner | Received God Mode back door access code from Data Miner 6811 | -7/Data Miner | Entered Proximity Caves 6966 | -6/Proximity Caves | Learned location of Extension (-4) 7059 | -6/Proximity Caves | Discovered exit to Factory (range 14) 7095 | -6/Proximity Caves | Entered Factory 7095 | -6/Factory | Evolved 2 slots: Utility x2 7097 | -6/Factory | Loaded intel: 278 non-interactive machine locations 7098 | -6/Factory | Loaded intel: 20 terminal locations 7294 | -6/Factory | Fabricated Exp. Sensor Array (x1) 7334 | -6/Factory | Fabricated Exp. Terrain Scan Processor (x1) 7367 | -6/Factory | Discovered new exit (range 18) 7390 | -6/Factory | Assembled infested ambush trap array 7393 | -6/Factory | Build established: Wizard-Scout 7483 | -6/Factory | Incoming assault squad redirected 7803 | -6/Factory | Local fabrication network quarantined 7806 | -6/Factory | Fabricated Gravity Neutralizing Apparatus (x1) 7817 | -6/Factory | Central database locked down 7953 | -6/Factory | Manually triggered Chute Trap 7953 | -6/Factory | Sucked down chute 7953 | -6/Factory | Entered Waste 7957 | -6/Waste | Spotted C-40 Crusher 7958 | -6/Waste | Spotted C-40 Crusher 7958 | -6/Waste | Spotted C-40 Crusher 7960 | -6/Waste | 1 allies followed down the chute 7962 | -6/Waste | Spotted C-40 Crusher 7965 | -6/Waste | Discovered new exit (range 15) 7966 | -6/Waste | Spotted C-40 Crusher 7966 | -6/Waste | Spotted C-40 Crusher 7968 | -6/Waste | EMP discharged 7969 | -6/Waste | Identified exit to Factory 7969 | -6/Waste | Entered Factory 8039 | -6/Factory | Identified exit to Lower Caves 8143 | -6/Factory | Found Exp. Targeting Computer 8265 | -6/Factory | Crushed by falling debris 8265 | -6/Factory | System corruption reached 10% 8300 | -6/Factory | Central database locked down 8352 | -6/Factory | Entered Lower Caves 8455 | -6/Lower Caves | Identified exit to Lower Caves 8499 | -6/Lower Caves | Entered another Lower Caves area 8507 | -6/Lower Caves | Encountered a Warlord checkpoint 8507 | -6/Lower Caves | Discovered new exit (range 15) 8564 | -6/Lower Caves | Build established: Hacker-Scout 8651 | -6/Lower Caves | Discovered new exit (range 17) 8666 | -6/Lower Caves | Entered Zion 8676 | -6/Zion | System corruption cleaned by Quarantine Array 8681 | -6/Zion | Acquired unknown access codes intercepted by a Zionite 8692 | -6/Zion | Discovered new exit (range 17) 8750 | -6/Zion | Learned location of Quarantine (-2) 8759 | -6/Zion | Learned location of 1 exit from Factory 8764 | -6/Zion | Learned Factory garrison access intel 8830 | -6/Zion | Found Prototype Device 8832 | -6/Zion | Identified Phasing AFG 8867 | -6/Zion | Entered Proximity Caves 8870 | -5/Proximity Caves | Attracted the attention of an 0b10 checkpoint 8884 | -5/Proximity Caves | Learned location of 1 exit from Factory 8976 | -5/Proximity Caves | Spotted B-75 Beast 9006 | -5/Proximity Caves | Discovered new exit (range 8) 9008 | -5/Proximity Caves | Entered Factory 9008 | -5/Factory | Evolved 2 slots: Utility x2 9009 | -5/Factory | Identified exit to Upper Caves 9009 | -5/Factory | Identified exit to Factory 9010 | -5/Factory | Loaded intel: 4 garrison access locations 9030 | -5/Factory | Lost 4 parts (3u1w) 9124 | -5/Factory | Discovered exit to Upper Caves (range 13) 9141 | -5/Factory | Self-destructed Last Messages --------------- 09042_ K-01 Serf pushes G-50 Soldier. 09043_ Sneak attack on A-15 Conveyor. 09043_ Jacked A-15 Conveyor... >>find_fabricator Pinpointed nearest Fabricator: (44,17) (added to intel). 09043_ K-01 Serf pushes G-50 Soldier. 09063_ Acquired Triangulator. 09072_ K-01 Serf cleans the Power Conduit. 09124_ EXIT=FOUND: UPPER CAVES 09125_ U-05 Engineer builds a Wall. 09127_ LC>Index(Terminals) Found 19 terminals. Downloaded coordinate data. 09141_ Triggered Fusion Bomb Trap. 09141_ An explosion rips through the floor. 09141_ Exp. Cesium-ion Thruster destroyed. 09141_ Imp. Datajack destroyed. 09141_ Construction Platform disabled. Map ----- +----------------------------------------------------+ | !! #????????????????????????????????????? | | [ #????????????????????????????????????? | | !#????????????????????????????????????? | | """"""""" #????????????????????????????????????? | | #????????????????????????????????????? | | ###########??????????????????????????????????????? | | ?????????????????????????????????????????????????? | | ?????????????????????????????????????????????????? | | ?????????????????????????????????????????????????? | | ?????????????????????????????????????????????????? | | ?????????????????????????????????????????????????? | | ?????????????????????##########??????????????????? | | ????????????????????? #??????????????????? | | ?????????????????#??? #??????????????????? | | ?????????????????# #??????????????????? | | ?????????????????# """ #??????????????????? | | ?????????????????# """ #??????????????????? | | ?????????????????# """ #??????????????????? | | ?????????????????# "" #??????????????????? | | ?????????????????# """ "" #??????????????????? | | ?????????????????# """ T" #??????????????????? | | ?????????????????# """ "" #??????????????????? | | ?????????????????# "" #??????????????????? | | ?????????????????# #??????????????????? | | ??????????????######## ####???????????????? | | ??????????????# @ ????????? | | ??????????????# ????????? | | ??????????????# " """" """"??????????? | | ??????????????# "" """" ??????????????? | | ??????????????# " " " " """"???????????????? | | ??????????????# """ """" """????????????????? | | ##+############ """" """" """????????????????? | | """" """" """????????????????? | | """" """" """????????????????? | | ????????????????? | | ????????????????? | | ????????????????? | | ########"########+########### ????????????????? | | #??? ?????????????????????????????? | | """ """ #? ???????????????????????????? | | """ """ = # ?????????????????????????? | | """ """ # """ """ #????????????????????????? | | # """ """ #????????????????????????? | | """ """ # """ """ ! #????????????????????????? | | """ """ # #????????????????????????? | | """ """ # ?""" """? #????????????????????????? | | #????" "???? #????????????????????????? | | """ """ #????" "?????#????????????????????????? | | "?" "?" #????? ???????????????????????????????? | | "?" "?" #????? ???????????????????????????????? | +----------------------------------------------------+ Best States ------------- Heat Dissipation 48 Energy Generation 18 Energy Capacity 250 Matter Stores 300 Matter Capacity 300 Sight Range 20 Robot Scan Range 30 Terrain Scan Range 20 Terrain Scan Density 1010 Additional Mass Support 12 Armor Coverage 600 Core Shielding 20 Utility Shielding 33 Evasion (%) 65 Recoil Reduction 2 Offensive Hacking 50 Defensive Hacking 14 Item Schematics ----------------- Lrn. Sensor Array | -7/Factory | Hacked Lgt. Fission Core | -7/Factory | Hacked Hacking Suite | -7/Factory | Scanalyzed Exp. Cesium-ion Thruster | -7/Factory | Scanalyzed Force Lance | -7/Factory | Scanalyzed Combat Drone Bay | -7/Data Miner | Free Exp. Sensor Array | -7/Data Miner | Free Lgt. Regenerative Plating | -7/Data Miner | Free Exp. Terrain Scan Processor | -7/Data Miner | Free Exp. Targeting Computer | -7/Data Miner | Free Exp. Transmission Jammer | -7/Data Miner | Free Mni. Smartbomb Launcher | -7/Data Miner | Free Exp. ECM Suite | -7/Data Miner | Free Plasma Sword | -7/Data Miner | Free HERF Cannon | -6/Factory | Hacked Gravity Neutralizing Apparatus | -6/Factory | Hacked Imp. Hacking Suite | -6/Factory | Hacked Exp. Signal Interpreter | -6/Factory | Hacked Field Propulsion Array | -6/Factory | Hacked Imp. Phase Shifter | -6/Factory | Hacked Nuclear Pulse Array | -5/Factory | Scanalyzed Robot Schematics ------------------ S-27 Virus | -7/Factory | Hacked G-50 Soldier | -7/Data Miner | Free G-67 Veteran | -7/Data Miner | Free H-66 Slayer | -7/Data Miner | Free P-70 Sage | -7/Data Miner | Free I-36 Angel | -7/Data Miner | Free I-47 Archangel | -7/Data Miner | Free Fabricated ------------ Hacking Suite | x1 | -7/Factory Lgt. Fission Core | x2 | -7/Factory Exp. Cesium-ion Thruster | x1 | -7/Factory Exp. Cesium-ion Thruster | x1 | -7/Factory Force Lance | x1 | -7/Factory Exp. Sensor Array | x1 | -6/Factory Exp. Terrain Scan Processor | x1 | -6/Factory Gravity Neutralizing Apparatus | x1 | -6/Factory Alien Tech Used ----------------- None Achievements -------------- None Challenges ------------ None Game ------ Seed HypervelocityCoolingInverter Manual? 0 Play Time 02:33:09 Cumulative 798.9 hours Start 2020.10.31 @ 14:07:06 End 2020.10.31 @ 17:47:18 Sessions 1 Manual Loads 0 Difficulty Rogue Special Mode None Game No. 427 Rogue 427 Adventurer 0 Explorer 0 Win Type - Total 64 Types 35/5/13/6/1/1/3/0/0 Lore% 89 Gallery% 89 Achievement% 76 Wizard Run 0 Options --------- ASCII 0 Keyboard 0 Movement Mouse Keybinds 0 Fullscreen 0 Font 32/Smallcaps Map View 76x50 Tactical HUD 1 Map Filters NONE Filters NONE Steam 0 RUN: d3c72e96-2c13-4b2b-86df-5471947df96f